Workbook

Sheet Summer HR Form
A1: Colorado School of Mines Academic Faculty SUMMER PAY Form
A2: May 15- August 18, 2023
A3: Please fill out all tan fields below:
A4: Full Name (last, first) | G4: CWID | I4: Department | M4: Suffix List | Q4: Summer Indexes | R4: Field Indexes
M5: F1 - Field I | P5: AMS | Q5: 233862 | R5: 233864
G6: SUMMER DATES | I6: Start Date | J6: End Date | K6: # of Days | M6: F2 - Field II | P6: CBE | Q6: 210804 | R6: 210802
A7: Please answer with "yes": | G7: Summer Research (SR) | I7: 2023-05-15 | J7: 2023-08-18 | K7: =NETWORKDAYS($I7,$J7) -> 70 | M7: S1 - Summer I | P7: CEE | Q7: 223284 | R7: 223282
G8: Summer I and II (S 14W) | I8: 2023-05-15 | J8: 2023-08-18 | K8: =NETWORKDAYS($I8,$J8) -> 70 | M8: S2 6W - Summer II 6 weeks | P8: CH | Q8: 214484 | R8: 214482
A9: Is this form for changes/revisions? | G9: Summer I (S1)/ Field I (F1) | I9: 2023-05-15 | J9: 2023-06-23 | K9: =NETWORKDAYS($I9,$J9) -> 30 | M9: S2 8W - Summer II 8 weeks | P9: CS | Q9: 219819 | R9: 219817
A10: Is this form for summer research? | G10: Summer II (S2)/ Field II (F2) | I10: 2023-06-26 | J10: 2023-08-04 | K10: =NETWORKDAYS($I10,$J10) -> 30 | M10: S 14W - Full Summer Term | P10: EB | Q10: 217204 | R10: 217202
A11: Is this form for department head duties? | G11: Summer II (S2 8W) | I11: 2023-06-26 | J11: 2023-08-18 | K11: =NETWORKDAYS($I11,$J11) -> 40 | M11: SR - Summer Research | P11: EDS | Q11: 247362 | R11: 247364
A12: Is this form for summer teaching? | L12: Calculated | M12: CE - Other Summer Assignments | P12: EE | Q12: 219709 | R12: 219707
A13: Position Number | F13: Suffix | G13: Start Date | H13: End Date | K13: Total # of Days | L13: Amount | M13: OR - Other Appointment | P13: GE | Q13: 225364 | R13: 225362
K14: =NETWORKDAYS(G14,H14) -> 0 | L14: =K14*$A$28 -> 0 | M14: WS- Workshops | P14: GP | Q14: 230874 | R14: 230872
A15: Job Title | K15: 0 | L15: 0 | M15: XP - Extra Pay | P15: HASS | Q15: 233062
K16: 0 | L16: 0 | P16: ME | Q16: 221064 | R16: 221062
A17: % of Effort (whole number) | K17: 0 | L17: 0 | P17: MME | Q17: 235984 | R17: 235982
K18: 0 | L18: 0 | P18: MN | Q18: 239844 | R18: 239842
A19: Acad Year Salary at 100% Effort | K19: 0 | L19: 0 | P19: PE | Q19: 242054 | R19: 242052
K20: 0 | L20: 0 | P20: PH | Q20: 244524 | R20: 244522
G21: Start Date | H21: End Date | I21: Credit Hours | P21: uQBE | Q21: 210358 | R21: 210358
F22: S1 | K22: =(IF($I22=8,30,IF($I22=7,30,IF($I22=6.5,30,IF($I22=6,30,IF($I22=5.5,30,IF($I22=5,30,IF($I22=4.5,30,IF($I22=4,30,IF($I22=3.5,26.99,IF($I22=3,23.12,IF($I22=2.5,19.28,IF($I22=2,15.42,IF($I22=1.5,11.57,IF($I22=1,7.71,IF($I22=0.5,3.86,"")))))))))))))))) ->  | L22: =IFERROR(K22*$A$28,0) -> 0 | M22: =IFERROR(IF(AND($I22>0,$L22>0),_xlfn.IFS(AND($I22=3,$L22>15000),"ERROR! Range for a 3 credit summer course is between $8,360 and $15,675",AND($I22=3,$L22<8000),"ERROR! Range for a 3 credit summer course is between $8,360 and $15,675"),""),"") -> 
F23: S1 | K23: =(IF($I23=8,30,IF($I23=7,30,IF($I23=6.5,30,IF($I23=6,30,IF($I23=5.5,30,IF($I23=5,30,IF($I23=4.5,30,IF($I23=4,30,IF($I23=3.5,26.99,IF($I23=3,23.12,IF($I23=2.5,19.28,IF($I23=2,15.42,IF($I23=1.5,11.57,IF($I23=1,7.71,IF($I23=0.5,3.86,"")))))))))))))))) ->  | L23: =IFERROR(K23*$A$28,0) -> 0
F24: S2 6W | K24: =(IF($I24=8,30,IF($I24=7,30,IF($I24=6.5,30,IF($I24=6,30,IF($I24=5.5,30,IF($I24=5,30,IF($I24=4.5,30,IF($I24=4,30,IF($I24=3.5,26.99,IF($I24=3,23.12,IF($I24=2.5,19.28,IF($I24=2,15.42,IF($I24=1.5,11.57,IF($I24=1,7.71,IF($I24=0.5,3.86,"")))))))))))))))) ->  | L24: 0
F25: S2 6W | K25: =(IF($I25=8,30,IF($I25=7,30,IF($I25=6.5,30,IF($I25=6,30,IF($I25=5.5,30,IF($I25=5,30,IF($I25=4.5,30,IF($I25=4,30,IF($I25=3.5,26.99,IF($I25=3,23.12,IF($I25=2.5,19.28,IF($I25=2,15.42,IF($I25=1.5,11.57,IF($I25=1,7.71,IF($I25=0.5,3.86,"")))))))))))))))) ->  | L25: 0
F26: S2 8W | K26: =(IF($I26=8,30,IF($I26=7,30,IF($I26=6.5,30,IF($I26=6,30,IF($I26=5.5,30,IF($I26=5,30,IF($I26=4.5,30,IF($I26=4,30,IF($I26=3.5,26.99,IF($I26=3,23.12,IF($I26=2.5,19.28,IF($I26=2,15.42,IF($I26=1.5,11.57,IF($I26=1,7.71,IF($I26=0.5,3.86,"")))))))))))))))) ->  | L26: 0
A27: Amount paid per day | F27: S2 8W | K27: =(IF($I27=8,30,IF($I27=7,30,IF($I27=6.5,30,IF($I27=6,30,IF($I27=5.5,30,IF($I27=5,30,IF($I27=4.5,30,IF($I27=4,30,IF($I27=3.5,26.99,IF($I27=3,23.12,IF($I27=2.5,19.28,IF($I27=2,15.42,IF($I27=1.5,11.57,IF($I27=1,7.71,IF($I27=0.5,3.86,"")))))))))))))))) ->  | L27: 0
A28: =A20*0.00541*A18/100 -> 0 | F28: S 14W | K28: =(IF($I28=8,30,IF($I28=7,30,IF($I28=6.5,30,IF($I28=6,30,IF($I28=5.5,30,IF($I28=5,30,IF($I28=4.5,30,IF($I28=4,30,IF($I28=3.5,26.99,IF($I28=3,23.12,IF($I28=2.5,19.28,IF($I28=2,15.42,IF($I28=1.5,11.57,IF($I28=1,7.71,IF($I28=0.5,3.86,"")))))))))))))))) ->  | L28: 0
A29: SPECIFIC Duties and/or Comments: | F29: S 14W | K29: =(IF($I29=8,30,IF($I29=7,30,IF($I29=6.5,30,IF($I29=6,30,IF($I29=5.5,30,IF($I29=5,30,IF($I29=4.5,30,IF($I29=4,30,IF($I29=3.5,26.99,IF($I29=3,23.12,IF($I29=2.5,19.28,IF($I29=2,15.42,IF($I29=1.5,11.57,IF($I29=1,7.71,IF($I29=0.5,3.86,"")))))))))))))))) ->  | L29: 0
J30: Total should not to exceed 70 days | K30: =SUM(K14:K29) -> 0 | L30: =SUM(L14:L29) -> 0
F31: NOTE: DH's can only have 32.5 days (not 70) | M31: =IF(K30>70,"ERROR! Total days should not exceed 70","") -> 
F32: Do not include the DH's 37.5 days of department summer duties to this form. Pay for these days are set up differently.
A35: Summer Research, Field I and Field II
A37: Suffix | B37: Index | C37: Fund | D37: Org | E37: Acct | F37: Prog | G37: Start Date | H37: End Date | I37: Amount to be paid | K37: % Distribution | L37: # of Days
A38: SR | E38: 5210 | I38: =L38*$A$28 -> 0 | J38: N/A | K38: =IFERROR(_xlfn.IFS(A38="SR",$I38/SUMIFS($I$38:$I$42,$A$38:$A$42,"SR"),A38="F1",$I38/SUMIFS($I$38:$I$42,$A$38:$A$42,"F1"),A38="F2",$I38/SUMIFS($I$38:$I$42,$A$38:$A$42,"F2")),"") ->  | L38: =NETWORKDAYS($G38,$H38) -> 0
A39: SR | E39: 5210 | I39: =L39*$A$28 -> 0 | J39: N/A | K39: =IFERROR(_xlfn.IFS(A39="SR",$I39/SUMIFS($I$38:$I$42,$A$38:$A$42,"SR"),A39="F1",$I39/SUMIFS($I$38:$I$42,$A$38:$A$42,"F1"),A39="F2",$I39/SUMIFS($I$38:$I$42,$A$38:$A$42,"F2")),"") ->  | L39: =NETWORKDAYS($G39,$H39) -> 0
A40: SR | E40: 5210 | I40: =L40*$A$28 -> 0 | J40: N/A | K40: =IFERROR(_xlfn.IFS(A40="SR",$I40/SUMIFS($I$38:$I$42,$A$38:$A$42,"SR"),A40="F1",$I40/SUMIFS($I$38:$I$42,$A$38:$A$42,"F1"),A40="F2",$I40/SUMIFS($I$38:$I$42,$A$38:$A$42,"F2")),"") ->  | L40: 0
A41: F1 | E41: 5210 | I41: =L41*$A$28 -> 0 | J41: N/A | K41: =IFERROR(_xlfn.IFS(A41="SR",$I41/SUMIFS($I$38:$I$42,$A$38:$A$42,"SR"),A41="F1",$I41/SUMIFS($I$38:$I$42,$A$38:$A$42,"F1"),A41="F2",$I41/SUMIFS($I$38:$I$42,$A$38:$A$42,"F2")),"") ->  | L41: 0
A42: F2 | E42: 5210 | I42: =L42*$A$28 -> 0 | J42: N/A | K42: =IFERROR(_xlfn.IFS(A42="SR",$I42/SUMIFS($I$38:$I$42,$A$38:$A$42,"SR"),A42="F1",$I42/SUMIFS($I$38:$I$42,$A$38:$A$42,"F1"),A42="F2",$I42/SUMIFS($I$38:$I$42,$A$38:$A$42,"F2")),"") ->  | L42: 0
G43: MAY TOTAL | I43: =SUM(I38:I42) -> 0 | L43: =SUM(L38:L42) -> 0
A44: SR | E44: 5210 | I44: =L44*$A$28 -> 0 | J44: N/A | K44: =IFERROR(_xlfn.IFS(A44="SR",$I44/SUMIFS($I$44:$I$48,$A$44:$A$48,"SR"),A44="F1",$I44/SUMIFS($I$44:$I$48,$A$44:$A$48,"F1"),A44="F2",$I44/SUMIFS($I$44:$I$48,$A$44:$A$48,"F2")),"") ->  | L44: 0
A45: SR | E45: 5210 | I45: =L45*$A$28 -> 0 | J45: N/A | K45: =IFERROR(_xlfn.IFS(A45="SR",$I45/SUMIFS($I$44:$I$48,$A$44:$A$48,"SR"),A45="F1",$I45/SUMIFS($I$44:$I$48,$A$44:$A$48,"F1"),A45="F2",$I45/SUMIFS($I$44:$I$48,$A$44:$A$48,"F2")),"") ->  | L45: 0
A46: SR | E46: 5210 | I46: =L46*$A$28 -> 0 | J46: N/A | K46: =IFERROR(_xlfn.IFS(A46="SR",$I46/SUMIFS($I$44:$I$48,$A$44:$A$48,"SR"),A46="F1",$I46/SUMIFS($I$44:$I$48,$A$44:$A$48,"F1"),A46="F2",$I46/SUMIFS($I$44:$I$48,$A$44:$A$48,"F2")),"") ->  | L46: 0
A47: F1 | E47: 5210 | I47: =L47*$A$28 -> 0 | J47: N/A | K47: =IFERROR(_xlfn.IFS(A47="SR",$I47/SUMIFS($I$44:$I$48,$A$44:$A$48,"SR"),A47="F1",$I47/SUMIFS($I$44:$I$48,$A$44:$A$48,"F1"),A47="F2",$I47/SUMIFS($I$44:$I$48,$A$44:$A$48,"F2")),"") ->  | L47: 0
A48: F2 | E48: 5210 | I48: =L48*$A$28 -> 0 | J48: N/A | K48: =IFERROR(_xlfn.IFS(A48="SR",$I48/SUMIFS($I$44:$I$48,$A$44:$A$48,"SR"),A48="F1",$I48/SUMIFS($I$44:$I$48,$A$44:$A$48,"F1"),A48="F2",$I48/SUMIFS($I$44:$I$48,$A$44:$A$48,"F2")),"") ->  | L48: 0
G49: JUNE TOTAL | I49: =SUM(I44:I48) -> 0 | L49: =SUM(L44:L48) -> 0
A50: SR | E50: 5210 | I50: =L50*$A$28 -> 0 | J50: N/A | K50: =IFERROR(_xlfn.IFS(A50="SR",$I50/SUMIFS($I$50:$I$54,$A$50:$A$54,"SR"),A50="F1",$I50/SUMIFS($I$50:$I$54,$A$50:$A$54,"F1"),A50="F2",$I50/SUMIFS($I$50:$I$54,$A$50:$A$54,"F2")),"") ->  | L50: 0
A51: SR | E51: 5210 | I51: =L51*$A$28 -> 0 | J51: N/A | K51: =IFERROR(_xlfn.IFS(A51="SR",$I51/SUMIFS($I$50:$I$54,$A$50:$A$54,"SR"),A51="F1",$I51/SUMIFS($I$50:$I$54,$A$50:$A$54,"F1"),A51="F2",$I51/SUMIFS($I$50:$I$54,$A$50:$A$54,"F2")),"") ->  | L51: 0
A52: SR | E52: 5210 | I52: =L52*$A$28 -> 0 | J52: N/A | K52: =IFERROR(_xlfn.IFS(A52="SR",$I52/SUMIFS($I$50:$I$54,$A$50:$A$54,"SR"),A52="F1",$I52/SUMIFS($I$50:$I$54,$A$50:$A$54,"F1"),A52="F2",$I52/SUMIFS($I$50:$I$54,$A$50:$A$54,"F2")),"") ->  | L52: 0
A53: F1 | E53: 5210 | I53: =L53*$A$28 -> 0 | J53: N/A | K53: =IFERROR(_xlfn.IFS(A53="SR",$I53/SUMIFS($I$50:$I$54,$A$50:$A$54,"SR"),A53="F1",$I53/SUMIFS($I$50:$I$54,$A$50:$A$54,"F1"),A53="F2",$I53/SUMIFS($I$50:$I$54,$A$50:$A$54,"F2")),"") ->  | L53: 0
A54: F2 | E54: 5210 | I54: =L54*$A$28 -> 0 | J54: N/A | K54: =IFERROR(_xlfn.IFS(A54="SR",$I54/SUMIFS($I$50:$I$54,$A$50:$A$54,"SR"),A54="F1",$I54/SUMIFS($I$50:$I$54,$A$50:$A$54,"F1"),A54="F2",$I54/SUMIFS($I$50:$I$54,$A$50:$A$54,"F2")),"") ->  | L54: 0
G55: JULY TOTAL | I55: =SUM(I50:I54) -> 0 | L55: =SUM(L50:L54) -> 0
A56: SR | E56: 5210 | I56: =L56*$A$28 -> 0 | J56: N/A | K56: =IFERROR(_xlfn.IFS(A56="SR",$I56/SUMIFS($I$56:$I$60,$A$56:$A$60,"SR"),A56="F1",$I56/SUMIFS($I$56:$I$60,$A$56:$A$60,"F1"),A56="F2",$I56/SUMIFS($I$56:$I$60,$A$56:$A$60,"F2")),"") ->  | L56: 0
A57: SR | E57: 5210 | I57: =L57*$A$28 -> 0 | J57: N/A | K57: =IFERROR(_xlfn.IFS(A57="SR",$I57/SUMIFS($I$56:$I$60,$A$56:$A$60,"SR"),A57="F1",$I57/SUMIFS($I$56:$I$60,$A$56:$A$60,"F1"),A57="F2",$I57/SUMIFS($I$56:$I$60,$A$56:$A$60,"F2")),"") ->  | L57: 0
A58: SR | E58: 5210 | I58: =L58*$A$28 -> 0 | J58: N/A | L58: 0
A59: F1 | E59: 5210 | I59: =L59*$A$28 -> 0 | J59: N/A | L59: 0
A60: F2 | E60: 5210 | I60: =L60*$A$28 -> 0 | J60: N/A | L60: 0
G61: AUG TOTAL | I61: =SUM(I56:I60) -> 0 | L61: =SUM(L56:L60) -> 0
H62: TOTAL | I62: =I61+I55+I49+I43 -> 0 | L62: =L43+L49+L55+L61 -> 0
A64: Summer Instruction (S1 and S2)
M65: *If a faculty member is teaching above 4 credits you will need to overide formula in Column J to tie out to top section and submit an extra pay for extra work form for the overload pay.
A66: Suffix | B66: Index | C66: Fund | D66: Org | E66: Acct | F66: Prog | G66: Start Date | H66: End Date | I66: Amount to be paid | J66: *Credit Hours | K66: % Distribution | L66: # of Days
A67: S1 | E67: 5210 | I67: =L67*$A$28 -> 0 | K67: =IFERROR(I67/$I$72,"") ->  | L67: =NETWORKDAYS(G67,H67)*(IF($J67=8,1,IF($J67=7,1,IF($J67=6,1,IF($J67=5,1,IF($J67=4.5,1,IF($J67=4,1,IF($J67=3.5,0.8998,IF($J67=3,0.770832,IF($J67=2.5,0.6425,IF($J67=2,0.513889,IF($J67=1.5,0.3855,IF($J67=1,0.256944,IF($J67=0.5,0.1285)))))))))))))) -> 0
A68: S1 | E68: 5210 | I68: =L68*$A$28 -> 0 | K68: =IFERROR(I68/$I$72,"") ->  | L68: =NETWORKDAYS(G68,H68)*(IF($J68=8,1,IF($J68=7,1,IF($J68=6,1,IF($J68=5,1,IF($J68=4.5,1,IF($J68=4,1,IF($J68=3.5,0.8998,IF($J68=3,0.770832,IF($J68=2.5,0.6425,IF($J68=2,0.513889,IF($J68=1.5,0.3855,IF($J68=1,0.256944,IF($J68=0.5,0.1285)))))))))))))) -> 0
A69: S1 | E69: 5210 | I69: =L69*$A$28 -> 0 | L69: =NETWORKDAYS(G69,H69)*(IF($J69=8,1,IF($J69=7,1,IF($J69=6,1,IF($J69=5,1,IF($J69=4.5,1,IF($J69=4,1,IF($J69=3.5,0.8998,IF($J69=3,0.770832,IF($J69=2.5,0.6425,IF($J69=2,0.513889,IF($J69=1.5,0.3855,IF($J69=1,0.256944,IF($J69=0.5,0.1285)))))))))))))) -> 0
A70: S 14W | E70: 5210 | I70: =L70*$A$28 -> 0 | L70: =NETWORKDAYS(G70,H70)*(IF($J70=8,0.4615,IF($J70=7,0.4615,IF($J70=6,0.4615,IF($J70=5,0.4615,IF($J70=4.5,0.4615,IF($J70=4,0.42858,IF($J70=3.5,0.385417,IF($J70=3,0.33035714,IF($J70=2.5,0.275298,IF($J70=2,0.2203,IF($J70=1.5,0.165179,IF($J70=1,0.11009,IF(J$70=0.5,0.055059)))))))))))))) -> 0
A71: S 14W | E71: 5210 | I71: =L71*$A$28 -> 0 | L71: =NETWORKDAYS(G71,H71)*(IF($J71=8,0.4615,IF($J71=7,0.4615,IF($J71=6,0.4615,IF($J71=5,0.4615,IF($J71=4.5,0.4615,IF($J71=4,0.42858,IF($J71=3.5,0.385417,IF($J71=3,0.33035714,IF($J71=2.5,0.275298,IF($J71=2,0.2203,IF($J71=1.5,0.165179,IF($J71=1,0.11009,IF(J$70=0.5,0.055059)))))))))))))) -> 0
G72: MAY TOTAL | I72: =SUM(I67:I71) -> 0 | L72: =SUM(L67:L71) -> 0
A73: S1 | E73: 5210 | I73: =L73*$A$28 -> 0 | K73: =IFERROR(I73/$I$81,"") ->  | L73: =NETWORKDAYS(G73,H73)*(IF($J73=8,1,IF($J73=7,1,IF($J73=6,1,IF($J73=5,1,IF($J73=4.5,1,IF($J73=4,1,IF($J73=3.5,0.8998,IF($J73=3,0.770832,IF($J73=2.5,0.6425,IF($J73=2,0.513889,IF($J73=1.5,0.3855,IF($J73=1,0.256944,IF($J73=0.5,0.1285)))))))))))))) -> 0
A74: S1 | E74: 5210 | I74: 0 | K74: =IFERROR(I74/$I$81,"") ->  | L74: =NETWORKDAYS(G74,H74)*(IF($J74=8,1,IF($J74=7,1,IF($J74=6,1,IF($J74=5,1,IF($J74=4.5,1,IF($J74=4,1,IF($J74=3.5,0.8998,IF($J74=3,0.770832,IF($J74=2.5,0.6425,IF($J74=2,0.513889,IF($J74=1.5,0.3855,IF($J74=1,0.256944,IF($J74=0.5,0.1285)))))))))))))) -> 0
A75: S2 6W | E75: 5210 | I75: 0 | L75: =NETWORKDAYS(G75,H75)*(IF($J75=8,1,IF($J75=7,1,IF($J75=6,1,IF($J75=5,1,IF($J75=4.5,1,IF($J75=4,1,IF($J75=3.5,0.8998,IF($J75=3,0.770832,IF($J75=2.5,0.6425,IF($J75=2,0.513889,IF($J75=1.5,0.3855,IF($J75=1,0.256944,IF($J75=0.5,0.1285)))))))))))))) -> 0
A76: S2 6W | E76: 5210 | I76: 0 | L76: =NETWORKDAYS(G76,H76)*(IF($J76=8,1,IF($J76=7,1,IF($J76=6,1,IF($J76=5,1,IF($J76=4.5,1,IF($J76=4,1,IF($J76=3.5,0.8998,IF($J76=3,0.770832,IF($J76=2.5,0.6425,IF($J76=2,0.513889,IF($J76=1.5,0.3855,IF($J76=1,0.256944,IF($J76=0.5,0.1285)))))))))))))) -> 0
A77: S2 8W | E77: 5210 | I77: 0 | L77: =NETWORKDAYS(G77,H77)*(IF($J77=8,1,IF($J77=7,1,IF($J77=6,1,IF($J77=5,1,IF($J77=4.5,0.867186,IF($J77=4,0.75,IF($J77=3.5,0.674479,IF($J77=3,0.578124,IF($J77=2.5,0.482,IF($J77=2,0.385416,IF($J77=1.5,0.2892,IF($J77=1,0.192708,IF($J77=0.5,0.0964)))))))))))))) -> 0
A78: S2 8W | E78: 5210 | I78: 0 | L78: =NETWORKDAYS(G78,H78)*(IF($J78=8,1,IF($J78=7,1,IF($J78=6,1,IF($J78=5,1,IF($J78=4.5,0.867186,IF($J78=4,0.75,IF($J78=3.5,0.674479,IF($J78=3,0.578124,IF($J78=2.5,0.482,IF($J78=2,0.385416,IF($J78=1.5,0.2892,IF($J78=1,0.192708,IF($J78=0.5,0.0964)))))))))))))) -> 0
A79: S 14W | E79: 5210 | I79: 0 | L79: =NETWORKDAYS(G79,H79)*(IF($J79=8,0.4615,IF($J79=7,0.4615,IF($J79=6,0.4615,IF($J79=5,0.4615,IF($J79=4.5,0.4615,IF($J79=4,0.42858,IF($J79=3.5,0.385417,IF($J79=3,0.33035714,IF($J79=2.5,0.275298,IF($J79=2,0.2203,IF($J79=1.5,0.165179,IF($J79=1,0.11009,IF(J$70=0.5,0.055059)))))))))))))) -> 0
A80: S 14W | E80: 5210 | I80: =L80*$A$28 -> 0 | L80: =NETWORKDAYS(G80,H80)*(IF($J80=8,0.4615,IF($J80=7,0.4615,IF($J80=6,0.4615,IF($J80=5,0.4615,IF($J80=4.5,0.4615,IF($J80=4,0.42858,IF($J80=3.5,0.385417,IF($J80=3,0.33035714,IF($J80=2.5,0.275298,IF($J80=2,0.2203,IF($J80=1.5,0.165179,IF($J80=1,0.11009,IF(J$70=0.5,0.055059)))))))))))))) -> 0
G81: JUNE TOTAL | I81: =SUM(I73:I80) -> 0 | L81: =SUM(L73:L80) -> 0
A82: S2 6W | E82: 5210 | I82: =L82*$A$28 -> 0 | K82: =IFERROR(I82/$I$89,"") ->  | L82: =NETWORKDAYS(G82,H82)*(IF($J82=8,1,IF($J82=7,1,IF($J82=6,1,IF($J82=5,1,IF($J82=4.5,1,IF($J82=4,1,IF($J82=3.5,0.8998,IF($J82=3,0.770832,IF($J82=2.5,0.6425,IF($J82=2,0.513889,IF($J82=1.5,0.3855,IF($J82=1,0.256944,IF($J82=0.5,0.1285)))))))))))))) -> 0
A83: S2 6W | E83: 5210 | I83: 0 | L83: =NETWORKDAYS(G83,H83)*(IF($J83=8,1,IF($J83=7,1,IF($J83=6,1,IF($J83=5,1,IF($J83=4.5,1,IF($J83=4,1,IF($J83=3.5,0.8998,IF($J83=3,0.770832,IF($J83=2.5,0.6425,IF($J83=2,0.513889,IF($J83=1.5,0.3855,IF($J83=1,0.256944,IF($J83=0.5,0.1285)))))))))))))) -> 0
A84: S2 6W | E84: 5210 | I84: 0 | L84: =NETWORKDAYS(G84,H84)*(IF($J84=8,1,IF($J84=7,1,IF($J84=6,1,IF($J84=5,1,IF($J84=4.5,1,IF($J84=4,1,IF($J84=3.5,0.8998,IF($J84=3,0.770832,IF($J84=2.5,0.6425,IF($J84=2,0.513889,IF($J84=1.5,0.3855,IF($J84=1,0.256944,IF($J84=0.5,0.1285)))))))))))))) -> 0
A85: S2 8W | E85: 5210 | I85: 0 | L85: =NETWORKDAYS(G85,H85)*(IF($J85=8,1,IF($J85=7,1,IF($J85=6,1,IF($J85=5,1,IF($J85=4.5,0.867186,IF($J85=4,0.75,IF($J85=3.5,0.674479,IF($J85=3,0.578124,IF($J85=2.5,0.482,IF($J85=2,0.385416,IF($J85=1.5,0.2892,IF($J85=1,0.192708,IF($J85=0.5,0.0964)))))))))))))) -> 0
A86: S2 8W | E86: 5210 | I86: 0 | L86: =NETWORKDAYS(G86,H86)*(IF($J86=8,1,IF($J86=7,1,IF($J86=6,1,IF($J86=5,1,IF($J86=4.5,0.867186,IF($J86=4,0.75,IF($J86=3.5,0.674479,IF($J86=3,0.578124,IF($J86=2.5,0.482,IF($J86=2,0.385416,IF($J86=1.5,0.2892,IF($J86=1,0.192708,IF($J86=0.5,0.0964)))))))))))))) -> 0
A87: S 14W | E87: 5210 | I87: 0 | L87: =NETWORKDAYS(G87,H87)*(IF($J87=8,0.4615,IF($J87=7,0.4615,IF($J87=6,0.4615,IF($J87=5,0.4615,IF($J87=4.5,0.4615,IF($J87=4,0.42858,IF($J87=3.5,0.385417,IF($J87=3,0.33035714,IF($J87=2.5,0.275298,IF($J87=2,0.2203,IF($J87=1.5,0.165179,IF($J87=1,0.11009,IF(J$70=0.5,0.055059)))))))))))))) -> 0
A88: S 14W | E88: 5210 | I88: 0 | L88: =NETWORKDAYS(G88,H88)*(IF($J88=8,0.4615,IF($J88=7,0.4615,IF($J88=6,0.4615,IF($J88=5,0.4615,IF($J88=4.5,0.4615,IF($J88=4,0.42858,IF($J88=3.5,0.385417,IF($J88=3,0.33035714,IF($J88=2.5,0.275298,IF($J88=2,0.2203,IF($J88=1.5,0.165179,IF($J88=1,0.11009,IF(J$70=0.5,0.055059)))))))))))))) -> 0
G89: JULY TOTAL | I89: =SUM(I82:I88) -> 0 | L89: =SUM(L82:L88) -> 0
A90: S2 6W | E90: 5210 | I90: =L90*$A$28 -> 0 | K90: =IFERROR(I90/$I$97,"") ->  | L90: =NETWORKDAYS(G90,H90)*(IF($J90=8,1,IF($J90=7,1,IF($J90=6,1,IF($J90=5,1,IF($J90=4.5,1,IF($J90=4,1,IF($J90=3.5,0.8998,IF($J90=3,0.770832,IF($J90=2.5,0.6425,IF($J90=2,0.513889,IF($J90=1.5,0.3855,IF($J90=1,0.256944,IF($J90=0.5,0.1285)))))))))))))) -> 0
A91: S2 6W | E91: 5210 | I91: 0 | L91: =NETWORKDAYS(G91,H91)*(IF($J91=8,1,IF($J91=7,1,IF($J91=6,1,IF($J91=5,1,IF($J91=4.5,1,IF($J91=4,1,IF($J91=3.5,0.8998,IF($J91=3,0.770832,IF($J91=2.5,0.6425,IF($J91=2,0.513889,IF($J91=1.5,0.3855,IF($J91=1,0.256944,IF($J91=0.5,0.1285)))))))))))))) -> 0
A92: S2 6W | E92: 5210 | I92: 0 | L92: =NETWORKDAYS(G92,H92)*(IF($J92=8,1,IF($J92=7,1,IF($J92=6,1,IF($J92=5,1,IF($J92=4.5,1,IF($J92=4,1,IF($J92=3.5,0.8998,IF($J92=3,0.770832,IF($J92=2.5,0.6425,IF($J92=2,0.513889,IF($J92=1.5,0.3855,IF($J92=1,0.256944,IF($J92=0.5,0.1285)))))))))))))) -> 0
A93: S2 8W | E93: 5210 | I93: 0 | L93: =NETWORKDAYS(G93,H93)*(IF($J93=8,1,IF($J93=7,1,IF($J93=6,1,IF($J93=5,1,IF($J93=4.5,0.867186,IF($J93=4,0.75,IF($J93=3.5,0.674479,IF($J93=3,0.578124,IF($J93=2.5,0.482,IF($J93=2,0.385416,IF($J93=1.5,0.2892,IF($J93=1,0.192708,IF($J93=0.5,0.0964)))))))))))))) -> 0
A94: S2 8W | E94: 5210 | I94: 0 | L94: =NETWORKDAYS(G94,H94)*(IF($J94=8,1,IF($J94=7,1,IF($J94=6,1,IF($J94=5,1,IF($J94=4.5,0.867186,IF($J94=4,0.75,IF($J94=3.5,0.674479,IF($J94=3,0.578124,IF($J94=2.5,0.482,IF($J94=2,0.385416,IF($J94=1.5,0.2892,IF($J94=1,0.192708,IF($J94=0.5,0.0964)))))))))))))) -> 0
A95: S 14W | E95: 5210 | I95: 0 | L95: =NETWORKDAYS(G95,H95)*(IF($J95=8,0.4615,IF($J95=7,0.4615,IF($J95=6,0.4615,IF($J95=5,0.4615,IF($J95=4.5,0.4615,IF($J95=4,0.42858,IF($J95=3.5,0.385417,IF($J95=3,0.33035714,IF($J95=2.5,0.275298,IF($J95=2,0.2203,IF($J95=1.5,0.165179,IF($J95=1,0.11009,IF(J$70=0.5,0.055059)))))))))))))) -> 0
A96: S 14W | E96: 5210 | I96: 0 | L96: =NETWORKDAYS(G96,H96)*(IF($J96=8,0.4615,IF($J96=7,0.4615,IF($J96=6,0.4615,IF($J96=5,0.4615,IF($J96=4.5,0.4615,IF($J96=4,0.42858,IF($J96=3.5,0.385417,IF($J96=3,0.33035714,IF($J96=2.5,0.275298,IF($J96=2,0.2203,IF($J96=1.5,0.165179,IF($J96=1,0.11009,IF(J$70=0.5,0.055059)))))))))))))) -> 0
G97: AUG TOTAL | I97: =SUM(I90:I96) -> 0 | L97: =SUM(L90:L96) -> 0
H98: TOTAL | I98: =I97+I89+I81+I72 -> 0 | L98: =L72+L81+L89+L97 -> 0
A100: Other Summer Assignments CE (short course), WS(workshops), XP (extra pay) OR (other appointment)
A102: Suffix | B102: Month | C102: Index | D102: Fund | E102: Org | F102: Acct | G102: Start Date | H102: End Date | I102: Amount to be paid | J102: Credits | K102: % Distribution | L102: # of Days
A103: XP | I103: =$A$28*L103 -> 0 | J103: N/A | L103: =NETWORKDAYS(G103,H103) -> 0 | M103: Please include the month in Column B for this section
I104: =$A$28*L104 -> 0 | J104: N/A | L104: =NETWORKDAYS(G104,H104) -> 0
I105: =$A$28*L105 -> 0 | J105: N/A | L105: =NETWORKDAYS(G105,H105) -> 0
I106: =$A$28*L106 -> 0 | J106: N/A | L106: =NETWORKDAYS(G106,H106) -> 0
H107: TOTAL | I107: =SUM(I103:I106) -> 0 | L107: =SUM(L103:L106) -> 0
H109: Total amount of this HR form: | I109: =SUM(I107,I98,I62) -> 0 | L109: =SUM(L107,L98,L62) -> 0
M110: =I109-L30 -> 0 | N110: =K30-L109 -> 0
A111: Date/Name/Phone Number of Person Preparing this form:
A113: Vice Provost/Dean APPROVAL | G113: Forwarded to Fund Manager:
I114: (Please type Name and Date)
A115: (Please type Name and Date) | G115: Forwarded to DH:
I116: (Please type Name and Date)
G117: Forwarded to Employee:
I118: (Please type Name and Date)
H120: Budget Office Approval
E126: PLEASE SUBMIT SUMMER PAY FORM TO BUDGET@MINES.EDU

Sheet Summer Pay Form Instructions
C1: Instructions
B3: Step 1 | C3: Input: Full Name, CWID, Department, Position Number, Job Title, % of Effort and Salary at 100% effort. These fields are required.
B5: Step 2 | C5: Please answer the questions in Column F, Line 9-12
B7: Step 3 | C7: For Summer Research, Field Session, or other duties: In the top section (Column F, Lines 14-20) select the suffix from the drop-down and enter date-range in Columns G and H. Note that Columns K and L have formulas so no further action is needed on this step. | H7: 0 | J7: 0
C8: For Summer Instruction: In the top section (Column F, Lines 22-29) enter date-range in Columns G and H and credit hours in Column I. Note that Columns K and L have formulas so no further action is needed on this step.
B10: Step 4 | C10: Scroll down and you will notice that there are three sections, Summer Research, Field I and Field II (Starts on line 35), Summer Instructions (S1 and S2) starting on (line 64) and Other Summer Assignments CA (Athletic camps), CE (short course), WS(workshop), XP (Extra Pay) OR (other appointment) (Line 100)
B12: Step 5 | C12: If you completed any fields in top section (Columns G and H, Lines 14-20) then the *Summer Research, Field I and Field II section will need to be completed. *If you used codes CE,OR,WS,CA or XP in this same top section, then the Other Summer Assignments section starting on line 100 must be completed. If you completed any fields in in (Columns G and H, Lines 22-29) then the Summer Instruction (S1 and S2) section will need to be completed.
B14: Step 6 | C14: For the Summer Research, Field I and Field II section beginning on line 38, the suffix fields are pre-populated, but can be changed by using the dropdown. Do not leave the suffix field blank. If left blank, % of distribution will not calculate. For the Summer Instruction section beginning on line 61, the suffix fields are pre-populated and cannot be changed.
B16: Step 7 | C16: Verify that the top and bottom section tie out. You will receive a pop up message if they do not tie.
B18: Step 8 | C18: Lastly, we need approval from the person who prepared form (Cell H111), Fund Manager (Cell I113), **DH (Cell I115) and Employee (Cell I117) This is required **If this is a DH form, the Dean must sign in place of the DH
B20: Step 9 | C20: Submit to Budget@mines.edu
C22: REVISIONS
C23: For revisions, start with the most recent submitted contract and add in your new changes. Do not use a separate summer contract forms for your revision.
C25: IMPORTANT NOTE
C26: For Summer Teaching, there is a min and max for faculty pay for a 3 credit course. Min=$8,360 Max=$15,675
I101: 0
J103: 0
J105: 0
J107: 0

Sheet Data for weeks
B1: SCH | C1: 8 | D1: 7 | E1: 6.5 | F1: 6 | G1: 5.5 | H1: 5 | I1: 4.5 | J1: 4 | K1: 3.5 | L1: 3 | M1: 2.5 | N1: 2 | O1: 1.5 | P1: 1 | Q1: 0.5 | R1: Days | S1: Column1
A2: Weeks | B2: 2 weeks | C2: =(128/R2)/$V$10 -> 6.166666667 | D2: =(112/R2)/$V$10 -> 5.395833333 | E2: =(104/$R2)/$V$10 -> 5.010416667 | F2: =(96/R2)/$V$10 -> 4.625 | G2: =(88/R2)/$V$10 -> 4.239583333 | H2: =(80/R2)/$V$10 -> 3.854166667 | I2: =(72/R2)/$V$10 -> 3.46875 | J2: =(64/R2)/2.0757 -> 3.083297201 | K2: =(56/R2)/$V$10 -> 2.697916667 | L2: =(48/R2)/2.0757 -> 2.312472901 | M2: =(40/R2)/$V$10 -> 1.927083333 | N2: =(32/R2)/$V$10 -> 1.541666667 | O2: =(24/R2)/$V$10 -> 1.15625 | P2: =(16/R2)/$V$10 -> 0.7708333333 | Q2: =(8/R2)/$V$10 -> 0.3854166667 | R2: 10
B3: 3 Weeks | C3: 4.111111111 | D3: 3.597222222 | E3: 3.340277778 | F3: 3.083333333 | G3: 2.826388889 | H3: 2.569444444 | I3: 2.3125 | J3: =(64/R3)/2.0757 -> 2.055531467 | K3: 1.798611111 | L3: =(48/R3)/2.0757 -> 1.5416486 | M3: 1.284722222 | N3: 1.027777778 | O3: 0.7708333333 | P3: 0.5138888889 | Q3: 0.2569444444 | R3: 15
B4: 4 weeks | C4: 3.083333333 | D4: 2.697916667 | E4: 2.505208333 | F4: 2.3125 | G4: 2.119791667 | H4: 1.927083333 | I4: 1.734375 | J4: =(64/R4)/2.0757 -> 1.5416486 | K4: 1.348958333 | L4: =(48/R4)/2.0757 -> 1.15623645 | M4: 0.9635416667 | N4: 0.7708333333 | O4: 0.578125 | P4: 0.3854166667 | Q4: 0.1927083333 | R4: 20
B5: 5 Weeks | C5: 2.466666667 | D5: 2.158333333 | E5: 2.004166667 | F5: 1.85 | G5: 1.695833333 | H5: 1.541666667 | I5: 1.3875 | J5: =(64/R5)/2.0757 -> 1.23331888 | K5: 1.079166667 | L5: =(48/R5)/2.0757 -> 0.9249891603 | M5: 0.7708333333 | N5: 0.6166666667 | O5: 0.4625 | P5: 0.3083333333 | Q5: 0.1541666667 | R5: 25 | W5: =5*16 -> 80
B6: 6 weeks | C6: 2.055555556 | D6: 1.798611111 | E6: 1.670138889 | F6: 1.541666667 | G6: 1.413194444 | H6: 1.284722222 | I6: 1.15625 | J6: =(64/R6)/2.0757 -> 1.027765734 | K6: 0.8993055556 | L6: =(48/R6)/2.0757 -> 0.7708243002 | M6: 0.6423611111 | N6: 0.5138888889 | O6: 0.3854166667 | P6: 0.2569444444 | Q6: 0.1284722222 | R6: 30
B7: 7 weeks | C7: 1.761904762 | D7: 1.541666667 | E7: 1.431547619 | F7: 1.321428571 | G7: 1.211309524 | H7: 1.101190476 | I7: 0.9910714286 | J7: =(64/R7)/V10 -> 0.880952381 | K7: 0.7708333333 | L7: =(48/R7)/V10 -> 0.6607142857 | M7: 0.5505952381 | N7: 0.4404761905 | O7: 0.3303571429 | P7: 0.2202380952 | Q7: 0.1101190476 | R7: 35
B8: 8 weeks | C8: 1.541666667 | D8: 1.348958333 | E8: 1.252604167 | F8: 1.15625 | G8: 1.059895833 | H8: 0.9635416667 | I8: 0.8671875 | J8: =(64/R8)/2.0757 -> 0.7708243002 | K8: 0.6744791667 | L8: =(48/R8)/2.0757 -> 0.5781182252 | M8: 0.4817708333 | N8: 0.3854166667 | O8: 0.2890625 | P8: 0.1927083333 | Q8: 0.09635416667 | R8: 40 | V8: =16/30 -> 0.5333333333
B9: 14 Weeks | C9: =(128/$R$9)/$V$10 -> 0.880952381 | D9: =(112/$R$9)/$V$10 -> 0.7708333333 | E9: =(104/$R9)/$V$10 -> 0.7157738095 | F9: =(96/$R$9)/$V$10 -> 0.6607142857 | G9: =(88/R9)/$V$10 -> 0.6056547619 | H9: =(80/$R$9)/$V$10 -> 0.5505952381 | I9: =(72/R9)/$V$10 -> 0.4955357143 | J9: =(64/R9)/$V$10 -> 0.4404761905 | K9: =(56/R9)/$V$10 -> 0.3854166667 | L9: =(48/R9)/V10 -> 0.3303571429 | M9: =(40/R9)/$W$10 -> 0.2965902502 | N9: =(32/R9)/$W$10 -> 0.2372722002 | O9: =(24/R9)/$W$10 -> 0.1779541501 | P9: =(16/R9)/$W$10 -> 0.1186361001 | Q9: =(8/R9)/$W$10 -> 0.05931805004 | R9: 70 | S9: There is an issue with these
V10: =16*24/185 -> 2.075675676 | W10: 1.92666
V11: =32/30 -> 1.066666667
V12: =V11/V10 -> 0.5138888889
AA14: 8
AA15: 16
AA16: 24
AA17: 32
AA18: 40
L19: 0.3559083 | AA19: 48
AA20: 56
AA21: 64
AA22: 72
AA23: 80
AA24: 88
AA25: 96
AA26: 104
AA27: 112
AA28: 120
AA29: 128
AA30: 136

Sheet Data Validation (hidden)
A2: SR | B2: S1 | C2: S2 8W | D2: Yes | E2: CE | F2: May | G2: Yes, teaching on campus class
A3: F1 | B3: S2 6W | D3: No | E3: OR | F3: June | G3: Yes, teaching graduate online class
A4: F2 | B4: S2 8W | E4: WS | F4: July | G4: Yes, teaching undergraduate online class
A5: XP | E5: XP | F5: August | G5: Yes, teaching abroad class
A6: CE | G6: Yes, teaching course to free up faculty to teach online course
A7: OR | G7: No
A8: WS
